fUSD/lending_fUSD_20240329
["ID","MTS","AMOUNT","RATE_DAILY","PERIOD"]
[320937241,1711717861070,-500.0,0.00051232,120]
[320937242,1711717861079,-500.0,0.00051232,120]
[320937243,1711717861089,-500.0,0.00051232,120]
[320937244,1711717861098,-500.0,0.00051232,120]
[320937245,1711717861107,-500.0,0.00051232,120]
[320937246,1711717861116,-500.0,0.00051232,120]
[320937247,1711717861126,-500.0,0.00051232,120]
[320937248,1711717861135,-500.0,0.00051232,120]
[320937249,1711717861145,-500.0,0.00051232,120]
[320937250,1711717861154,-500.0,0.00051232,120]
[320937251,1711717861164,-500.0,0.00051232,120]
[320937252,1711717861173,-500.0,0.00051232,120]
[320937253,1711717861182,-500.0,0.00051232,120]
[320937254,1711717861191,-200.3673032,0.00051232,120]
[320937255,1711717861201,-500.0,0.00051232,120]
[320937256,1711717861210,-500.0,0.00051232,120]
[320937257,1711717861219,-618.8226911,0.00051232,120]
[320937258,1711717861228,-500.0,0.00051232,120]
[320937259,1711717861237,-500.0,0.00051232,120]
[320937260,1711717861247,-150.0,0.00051232,120]
[320937261,1711717861256,-500.0,0.00051232,120]
[320937262,1711717861265,-500.0,0.00051232,120]
[320937263,1711717861275,-500.0,0.00051232,120]
[320937264,1711717861284,-500.0,0.00051232,120]
[320937265,1711717861294,-500.0,0.00051232,120]
[320937266,1711717861304,-500.0,0.00051232,120]
[320937267,1711717861315,-500.0,0.00051232,120]
[320937268,1711717861325,-500.0,0.00051232,120]
[320937269,1711717861334,-778.84,0.00051232,120]
[320937270,1711717861344,-500.0,0.00051232,120]
[320937271,1711717861354,-1080.64,0.00051232,120]
[320937272,1711717861363,-5519.83,0.00051232,120]
[320937273,1711717861373,-1991.3,0.00051232,120]
[320937274,1711717861383,-1398.69,0.00051232,120]
[320937275,1711717861393,-500.0,0.00051232,120]
[320937276,1711717861402,-500.0,0.00051232,120]
[320937277,1711717861412,-2247.5,0.00051232,120]
[320937278,1711717861422,-500.0,0.00051232,120]
[320937279,1711717861431,-2304.49,0.00051232,120]
[320937280,1711717861440,-837.52,0.00051232,120]
[320937281,1711717861450,-500.0,0.00051232,120]
[320937282,1711717861459,-500.0,0.00051232,120]
[320937283,1711717861468,-1038.32,0.00051232,120]
[320937284,1711717861477,-500.0,0.00051232,120]
[320937285,1711717861486,-4548.89,0.00051232,120]
[320937286,1711717861496,-929.2,0.00051232,120]
[320937287,1711717861505,-869.63,0.00051232,120]
[320937288,1711717861514,-522.99,0.00051232,120]
[320937289,1711717861523,-775.87,0.00051232,120]
[320937290,1711717861533,-2120.23,0.00051232,120]
[320937291,1711717861542,-500.0,0.00051232,120]
[320937292,1711717861552,-500.0,0.00051232,120]
[320937293,1711717861563,-848.81,0.00051232,120]
[320937294,1711717861573,-12375.59,0.00051232,120]
[320937295,1711717861582,-2381.03,0.00051232,120]
[320937296,1711717861591,-1445.92,0.00051232,120]
[320937297,1711717861600,-500.0,0.00051232,120]
[320937298,1711717861610,-500.0,0.00051232,120]
[320937299,1711717861619,-773.51,0.00051232,120]
[320937300,1711717861628,-228.41202562,0.00051232,120]
[320937301,1711717861637,-618.06,0.00051232,120]
[320937302,1711717861647,-420.13610236,0.00051232,120]
[320937303,1711717861656,-1006.88,0.00051232,120]
[320937304,1711717861669,-892.02,0.00051232,120]
[320937305,1711717861678,-1871.96,0.00051232,120]
[320937306,1711717861688,-576.09,0.00051232,120]
[320937307,1711717861697,-1084.24,0.00051232,120]
[320937308,1711717861706,-500.0,0.00051232,120]
[320937309,1711717861716,-500.0,0.00051232,120]
[320937310,1711717861724,-1017.92,0.00051232,120]
[320937311,1711717861734,-500.0,0.00051232,120]
[320937312,1711717861745,-500.0,0.00051232,120]
[320937313,1711717861754,-500.0,0.00051232,120]
[320937314,1711717861763,-1346.91,0.00051232,120]
[320937315,1711717861772,-7918.66,0.00051232,120]
[320937316,1711717861781,-1251.92,0.00051232,120]
[320937317,1711717861791,-759.82,0.00051232,120]
[320937318,1711717861800,-567.98,0.00051232,120]
[320937319,1711717861811,-833.99,0.00051232,120]
[320937320,1711717861820,-500.0,0.00051232,120]
[320937321,1711717861829,-500.0,0.00051232,120]
[320937322,1711717861839,-500.0,0.00051232,120]
[320937323,1711717861848,-500.0,0.00051232,120]
[320937324,1711717861858,-613.74,0.00051232,120]
[320937325,1711717861868,-629.65,0.00051232,120]
[320937326,1711717861877,-659.77,0.00051232,120]
[320937327,1711717861886,-500.0,0.00051232,120]
[320937328,1711717861895,-500.0,0.00051232,120]
[320937329,1711717861905,-753.42,0.00051232,120]
[320937330,1711717861914,-500.0,0.00051232,120]
[320937331,1711717861923,-500.0,0.00051232,120]
[320937332,1711717861932,-1665.88,0.00051232,120]
[320937333,1711717861941,-1013.23,0.00051232,120]
[320937334,1711717861950,-970.01,0.00051232,120]
[320937335,1711717861959,-885.14,0.00051232,21]
[320937336,1711717861969,-552.18,0.00051232,120]
[320937337,1711717861978,-542.16,0.00051232,120]
[320937338,1711717861987,-885.51,0.00051232,120]
[320937339,1711717861996,-917.94,0.00051232,120]
[320937340,1711717862006,-1173.66,0.00051232,120]
[320937341,1711717862016,-500.0,0.00051232,120]
[320937342,1711717862025,-553.85,0.00051232,120]
[320937343,1711717862035,-623.83,0.00051232,120]
[320937344,1711717862045,-1874.35,0.00051232,120]
[320937345,1711717862054,-500.0,0.00051232,120]
[320937346,1711717862065,-1018.16,0.00051232,120]
[320937347,1711717862074,-630.06,0.00051232,120]
[320937348,1711717862084,-500.0,0.00051232,120]
[320937349,1711717862093,-546.14,0.00051232,120]
[320937350,1711717862103,-2627.15,0.00051232,120]
[320937351,1711717862112,-500.0,0.00051232,120]
[320937352,1711717862121,-1014.49,0.00051232,120]
[320937353,1711717862130,-500.0,0.00051232,120]
[320937354,1711717862140,-1300.2,0.00051232,120]
[320937355,1711717862149,-500.0,0.00051232,120]
[320937356,1711717862159,-1025.95,0.00051232,120]
[320937357,1711717862169,-984.89,0.00051232,120]
[320937358,1711717862178,-1789.86,0.00051232,120]
[320937359,1711717862189,-500.0,0.00051232,120]
[320937360,1711717862199,-506.84,0.00051232,120]
[320937361,1711717862208,-840.09,0.00051232,120]
[320937362,1711717862218,-678.1,0.00051232,120]
[320937363,1711717862227,-577.48,0.00051232,120]
[320937364,1711717862236,-500.0,0.00051232,120]
[320937365,1711717862246,-505.19,0.00051232,120]
[320937366,1711717862255,-742.6,0.00051232,120]
[320937367,1711717862264,-732.01,0.00051232,120]
[320937368,1711717862273,-555.83,0.00051232,120]
[320937369,1711717862282,-500.0,0.00051232,120]
[320937370,1711717862292,-534.07,0.00051232,120]
[320937371,1711717862301,-1115.2,0.00051232,120]
[320937372,1711717862311,-500.0,0.00051232,120]
[320937373,1711717862320,-500.0,0.00051232,120]
[320937374,1711717862329,-500.0,0.00051232,120]
[320937375,1711717862338,-1065.99,0.00051232,120]
[320937376,1711717862347,-500.0,0.00051232,120]
[320937377,1711717862356,-549.59,0.00051232,120]
[320937378,1711717862365,-617.87,0.00051232,120]
[320937379,1711717862374,-2105.1,0.00051232,120]
[320937380,1711717862384,-544.66,0.00051232,120]
[320937381,1711717862393,-693.07,0.00051232,120]
[320937382,1711717862403,-967.17,0.00051232,120]
[320937383,1711717862412,-500.0,0.00051232,120]
[320937384,1711717862421,-720.75,0.00051232,120]
[320937385,1711717862431,-573.1,0.00051232,120]
[320937386,1711717862440,-500.0,0.00051232,120]
[320937387,1711717862449,-500.0,0.00051232,120]
[320937388,1711717862458,-500.0,0.00051232,120]
[320937389,1711717862467,-556.26,0.00051232,120]
[320937390,1711717862476,-500.0,0.00051232,120]
[320937391,1711717862485,-1304.35,0.00051232,120]
[320937392,1711717862494,-1140.14,0.00051232,120]
[320937393,1711717862503,-500.0,0.00051232,120]
[320937394,1711717862512,-930.22,0.00051232,120]
[320937395,1711717862521,-508.91,0.00051232,120]
[320937396,1711717862530,-150.0,0.00051234,30]
[320937397,1711717862540,-1400.0,0.00051234,30]
[320937398,1711717862549,-151.0,0.0005126,120]
[320937399,1711717862560,-157.032921,0.00051348,112]
[320937400,1711717862569,-150.0,0.000514,10]
[320937401,1711717862579,-158.71889232,0.00051419,60]
[320937402,1711717862589,-483.09876,0.00051448,108]
[320937403,1711717862601,-302.0,0.00051498,4]
[320937404,1711717862619,-152.65,0.000515,7]
[320937405,1711717862638,-152.65,0.000515,7]
[320937406,1711717862648,-152.65,0.000515,7]
[320937407,1711717862660,-152.65,0.000515,7]
[320937408,1711717862670,-152.65,0.000515,7]
[320937409,1711717862679,-152.65,0.000515,7]
[320937410,1711717862689,-152.65,0.000515,7]
[320937411,1711717862699,-152.65,0.000515,7]
[320937412,1711717862708,-3526.06,0.000515,7]
[320937413,1711717862717,-3526.06,0.000515,7]
[320937414,1711717862727,-3526.06,0.000515,7]
[320937415,1711717862736,-3526.06,0.000515,7]
[320937416,1711717862747,-3526.06,0.000515,7]
[320937417,1711717862758,-3526.06,0.000515,7]
[320937418,1711717862768,-3526.06,0.000515,7]
[320937419,1711717862779,-3526.06,0.000515,7]
[320937420,1711717862789,-3526.06,0.000515,7]
[320937421,1711717862799,-3526.06,0.000515,7]
[320937422,1711717862813,-3526.06,0.000515,7]
[320937423,1711717862824,-3526.06,0.000515,7]
[320937424,1711717862834,-3526.06,0.000515,7]
[320937425,1711717862843,-3526.06,0.000515,7]
[320937426,1711717862854,-3526.06,0.000515,7]
[320937427,1711717862864,-3526.06,0.000515,7]
[320937428,1711717862875,-3526.06,0.000515,7]
[320937429,1711717862885,-3526.06,0.000515,7]
[320937430,1711717862895,-3526.06,0.000515,7]
[320937431,1711717862905,-3526.06,0.000515,7]
[320937432,1711717862914,-500.0,0.00051506,120]
[320937433,1711717862924,-1748.17,0.00051506,120]
[320937434,1711717862933,-500.0,0.00051506,120]
[320937435,1711717862943,-500.0,0.00051506,2]
[320937436,1711717862952,-500.0,0.00051506,120]
[320937437,1711717862961,-500.0,0.00051506,120]
[320937438,1711717862970,-500.0,0.00051506,120]
[320937439,1711717862979,-500.0,0.00051506,120]
[320937440,1711717862988,-500.0,0.00051506,120]
[320937441,1711717862997,-500.0,0.00051506,120]
[320937442,1711717863006,-500.0,0.00051506,120]
[320937443,1711717863015,-500.0,0.00051506,120]
[320937444,1711717863024,-500.0,0.00051506,120]
[320937445,1711717863034,-500.0,0.00051506,120]
[320937446,1711717863043,-489.9707647,0.00051506,120]
[320937447,1711717863053,-500.0,0.00051506,120]
[320937448,1711717863068,-500.0,0.00051506,120]
[320937449,1711717863078,-449.02240366,0.00051506,120]
[320937450,1711717863087,-500.0,0.00051506,120]
[320937451,1711717863097,-500.0,0.00051506,120]
[320937452,1711717863106,-500.0,0.00051506,120]
[320937453,1711717863115,-150.0,0.00051506,120]
[320937454,1711717863125,-248.36605817,0.00051506,120]
[320937455,1711717863136,-583.47862699,0.00051506,120]
[320937456,1711717863155,-500.0,0.00051506,120]
[320937457,1711717863165,-500.0,0.00051506,120]
[320937458,1711717863175,-500.0,0.00051506,120]
[320937459,1711717863184,-500.0,0.00051506,120]
[320937460,1711717863193,-500.0,0.00051506,120]
[320937461,1711717863203,-500.0,0.00051506,120]
[320937462,1711717863212,-778.84,0.00051506,120]
[320937463,1711717863222,-500.0,0.00051506,120]
[320937464,1711717863230,-1080.64,0.00051506,120]
[320937465,1711717863240,-5519.83,0.00051506,120]
[320937466,1711717863249,-1991.3,0.00051506,120]
[320937467,1711717863262,-1398.69,0.00051506,120]
[320937468,1711717863275,-500.0,0.00051506,120]
[320937469,1711717863284,-500.0,0.00051506,120]
[320937470,1711717863294,-2247.5,0.00051506,120]
[320937471,1711717863303,-500.0,0.00051506,120]
[320937472,1711717863315,-2304.49,0.00051506,120]
[320937473,1711717863325,-837.52,0.00051506,120]
[320937474,1711717863334,-500.0,0.00051506,120]
[320937475,1711717863343,-500.0,0.00051506,120]
[320937476,1711717863353,-1038.32,0.00051506,120]
[320937477,1711717863363,-500.0,0.00051506,120]
[320937478,1711717863372,-4548.89,0.00051506,120]
[320937479,1711717863381,-929.2,0.00051506,120]
[320937480,1711717863391,-869.63,0.00051506,120]
[320937481,1711717863401,-522.99,0.00051506,120]
[320937482,1711717863530,-775.87,0.00051506,120]
[320937483,1711717863541,-2120.23,0.00051506,120]
[320937484,1711717863551,-500.0,0.00051506,120]
[320937485,1711717863562,-500.0,0.00051506,120]
[320937486,1711717863572,-848.81,0.00051506,120]
[320937487,1711717863581,-12375.59,0.00051506,120]
[320937488,1711717863591,-2381.03,0.00051506,120]
[320937489,1711717863601,-1445.92,0.00051506,120]
[320937490,1711717863610,-500.0,0.00051506,120]
[320937491,1711717863619,-500.0,0.00051506,120]
[320937492,1711717863629,-773.51,0.00051506,120]
[320937493,1711717863639,-618.06,0.00051506,120]
[320937494,1711717863648,-1006.88,0.00051506,120]
[320937495,1711717863658,-892.02,0.00051506,120]
[320937496,1711717863668,-1871.96,0.00051506,120]
[320937497,1711717863678,-576.09,0.00051506,120]
[320937498,1711717863687,-1084.24,0.00051506,120]
[320937499,1711717863696,-500.0,0.00051506,120]
[320937500,1711717863706,-500.0,0.00051506,120]
[320937501,1711717863715,-1017.92,0.00051506,120]
[320937502,1711717863724,-500.0,0.00051506,120]
[320937503,1711717863733,-500.0,0.00051506,120]
[320937504,1711717863742,-307.60720754,0.00051506,120]
[320937505,1711717863752,-1346.91,0.00051506,120]
[320937506,1711717863762,-7918.66,0.00051506,120]
[320937507,1711717863771,-1251.92,0.00051506,120]
[320937508,1711717863780,-759.82,0.00051506,120]
[320937509,1711717863789,-567.98,0.00051506,120]
[320937510,1711717863798,-833.99,0.00051506,120]
[320937511,1711717863809,-500.0,0.00051506,120]
[320937512,1711717863818,-500.0,0.00051506,120]
[320937513,1711717863827,-500.0,0.00051506,120]
[320937514,1711717863836,-500.0,0.00051506,120]
[320937515,1711717863845,-613.74,0.00051506,120]
[320937516,1711717863855,-629.65,0.00051506,120]
[320937517,1711717863864,-659.77,0.00051506,120]
[320937518,1711717863873,-500.0,0.00051506,120]
[320937519,1711717863882,-500.0,0.00051506,120]
[320937520,1711717863892,-753.42,0.00051506,120]
[320937521,1711717863900,-500.0,0.00051506,120]
[320937522,1711717863910,-500.0,0.00051506,120]
[320937523,1711717863919,-1665.88,0.00051506,120]
[320937524,1711717863928,-1013.23,0.00051506,120]
[320937525,1711717863938,-970.01,0.00051506,120]
[320937526,1711717863947,-885.14,0.00051506,21]
[320937527,1711717863956,-552.18,0.00051506,120]
[320937528,1711717863966,-542.16,0.00051506,120]
[320937529,1711717863975,-885.51,0.00051506,120]
[320937530,1711717863985,-917.94,0.00051506,120]
[320937531,1711717863994,-1173.66,0.00051506,120]
[320937532,1711717864004,-500.0,0.00051506,120]
[320937533,1711717864014,-553.85,0.00051506,120]
[320937534,1711717864023,-623.83,0.00051506,120]
[320937535,1711717864032,-1874.35,0.00051506,120]
[320937536,1711717864042,-500.0,0.00051506,120]
[320937537,1711717864051,-1018.16,0.00051506,120]
[320937538,1711717864062,-630.06,0.00051506,120]
[320937539,1711717864071,-500.0,0.00051506,120]
[320937540,1711717864081,-546.14,0.00051506,120]
[320937541,1711717864090,-2627.15,0.00051506,120]
[320937542,1711717864099,-500.0,0.00051506,120]
[320937543,1711717864108,-1014.49,0.00051506,120]
[320937544,1711717864117,-212.42836463,0.00051506,120]
[320937545,1711717864127,-1300.2,0.00051506,120]
[320937546,1711717864137,-500.0,0.00051506,120]
[320937547,1711717864147,-1025.95,0.00051506,120]
[320937548,1711717864156,-984.89,0.00051506,120]
[320937549,1711717864165,-1789.86,0.00051506,120]
[320937550,1711717864175,-500.0,0.00051506,120]
[320937551,1711717864185,-506.84,0.00051506,120]
[320937552,1711717864194,-840.09,0.00051506,120]
[320937553,1711717864203,-678.1,0.00051506,120]
[320937554,1711717864213,-577.48,0.00051506,120]
[320937555,1711717864222,-500.0,0.00051506,120]
[320937556,1711717864231,-505.19,0.00051506,120]
[320937557,1711717864240,-742.6,0.00051506,120]
[320937558,1711717864250,-732.01,0.00051506,120]
[320937559,1711717864260,-555.83,0.00051506,120]
[320937560,1711717864269,-500.0,0.00051506,120]
[320937561,1711717864279,-534.07,0.00051506,120]
[320937562,1711717864288,-1115.2,0.00051506,120]
[320937563,1711717864297,-500.0,0.00051506,120]
[320937564,1711717864308,-500.0,0.00051506,120]
[320937565,1711717864318,-500.0,0.00051506,120]
[320937566,1711717864327,-1065.99,0.00051506,120]
[320937567,1711717864346,-500.0,0.00051506,120]
[320937568,1711717864358,-549.59,0.00051506,120]
[320937569,1711717864368,-617.87,0.00051506,120]
[320937570,1711717864377,-2105.1,0.00051506,120]
[320937571,1711717864388,-544.66,0.00051506,120]
[320937572,1711717864398,-693.07,0.00051506,120]
[320937573,1711717864408,-967.17,0.00051506,120]
[320937574,1711717864419,-500.0,0.00051506,120]
[320937575,1711717864428,-720.75,0.00051506,120]
[320937576,1711717864438,-573.1,0.00051506,120]
[320937577,1711717864448,-500.0,0.00051506,120]
[320937578,1711717864457,-500.0,0.00051506,120]
[320937579,1711717864467,-500.0,0.00051506,120]
[320937580,1711717864477,-556.26,0.00051506,120]
[320937581,1711717864487,-500.0,0.00051506,120]
[320937582,1711717864496,-1304.35,0.00051506,120]
[320937583,1711717864506,-1140.14,0.00051506,120]
[320937584,1711717864516,-500.0,0.00051506,120]
[320937585,1711717864526,-930.22,0.00051506,120]
[320937586,1711717864536,-508.91,0.00051506,120]
[320937587,1711717864545,-258.4,0.00051616,120]
[320937588,1711717864555,-221.79,0.000517,7]
[320937589,1711717864565,-322.0,0.000517,40]
[320937590,1711717864575,-347.77,0.00051726,120]
[320937591,1711717864585,-153.21053774,0.00051745,84]
[320937592,1711717864594,-155.0,0.00051778,4]
[320937593,1711717864603,-155.0,0.00051779,4]
[320937594,1711717864612,-500.0,0.0005178,120]
[320937595,1711717864622,-1748.17,0.0005178,120]
[320937596,1711717864631,-500.0,0.0005178,120]
[320937597,1711717864640,-500.0,0.0005178,2]
[320937598,1711717864651,-500.0,0.0005178,120]
[320937599,1711717864663,-500.0,0.0005178,120]
[320937600,1711717864672,-205.92,0.0005178,120]
[320937601,1711717864681,-500.0,0.0005178,120]
[320937602,1711717864691,-500.0,0.0005178,120]
[320937603,1711717864701,-500.0,0.0005178,120]
[320937604,1711717864710,-500.0,0.0005178,120]
[320937605,1711717864719,-201.99360203,0.0005178,120]
[320937606,1711717864728,-500.0,0.0005178,120]
[320937607,1711717864738,-567.93073549,0.0005178,120]
[320937608,1711717864749,-500.0,0.0005178,120]
[320937609,1711717864758,-500.0,0.0005178,120]
[320937610,1711717864767,-500.0,0.0005178,120]
[320937611,1711717864776,-447.98784297,0.0005178,120]
[320937612,1711717864785,-500.0,0.0005178,120]
[320937613,1711717864795,-150.0,0.0005178,120]
[320937614,1711717864804,-500.0,0.0005178,120]
[320937615,1711717864815,-500.0,0.0005178,120]
[320937616,1711717864824,-500.0,0.0005178,120]
[320937617,1711717864835,-500.0,0.0005178,120]
[320937618,1711717864844,-500.0,0.0005178,120]
[320937619,1711717864854,-500.0,0.0005178,120]
[320937620,1711717864863,-778.84,0.0005178,120]
[320937621,1711717864872,-500.0,0.0005178,120]
[320937622,1711717864881,-1080.64,0.0005178,120]
[320937623,1711717864891,-5519.83,0.0005178,120]
[320937624,1711717864901,-1991.3,0.0005178,120]
[320937625,1711717864910,-1398.69,0.0005178,120]
[320937626,1711717864921,-500.0,0.0005178,120]
[320937627,1711717864930,-500.0,0.0005178,120]
[320937628,1711717864939,-2247.5,0.0005178,120]
[320937629,1711717864949,-647.02697122,0.0005178,120]
[320937630,1711717864959,-2304.49,0.0005178,120]
[320937631,1711717864968,-837.52,0.0005178,120]
[320937632,1711717864978,-451.89178612,0.0005178,120]
[320937633,1711717864988,-500.0,0.0005178,120]
[320937634,1711717864997,-1038.32,0.0005178,120]
[320937635,1711717865007,-500.0,0.0005178,120]
[320937636,1711717865017,-4548.89,0.0005178,120]
[320937637,1711717865026,-929.2,0.0005178,120]
[320937638,1711717865035,-869.63,0.0005178,120]
[320937639,1711717865045,-522.99,0.0005178,120]
[320937640,1711717865059,-775.87,0.0005178,120]
[320937641,1711717865069,-2120.23,0.0005178,120]
[320937642,1711717865079,-500.0,0.0005178,120]
[320937643,1711717865089,-500.0,0.0005178,120]
[320937644,1711717865099,-848.81,0.0005178,120]
[320937645,1711717865108,-12375.59,0.0005178,120]
[320937646,1711717865118,-2381.03,0.0005178,120]
[320937647,1711717865128,-1445.92,0.0005178,120]
[320937649,1711717865137,-500.0,0.0005178,120]
[320937650,1711717865147,-500.0,0.0005178,120]
[320937651,1711717865157,-773.51,0.0005178,120]
[320937653,1711717865167,-618.06,0.0005178,120]
[320937654,1711717865177,-1006.88,0.0005178,120]
[320937655,1711717865187,-892.02,0.0005178,120]
[320937656,1711717865196,-1871.96,0.0005178,120]
[320937657,1711717865207,-576.09,0.0005178,120]
[320937658,1711717865216,-1084.24,0.0005178,120]
[320937659,1711717865226,-500.0,0.0005178,120]
[320937660,1711717865236,-500.0,0.0005178,120]
[320937661,1711717865247,-1017.92,0.0005178,120]
[320937662,1711717865257,-500.0,0.0005178,120]
[320937663,1711717865267,-500.0,0.0005178,120]
[320937664,1711717865277,-1346.91,0.0005178,120]
[320937665,1711717865287,-7918.66,0.0005178,120]
[320937666,1711717865296,-1251.92,0.0005178,120]
[320937667,1711717865308,-759.82,0.0005178,120]
[320937668,1711717865317,-567.98,0.0005178,120]
[320937669,1711717865327,-833.99,0.0005178,120]
[320937670,1711717865337,-500.0,0.0005178,120]
[320937671,1711717865347,-500.0,0.0005178,120]
[320937672,1711717865357,-500.0,0.0005178,120]
[320937673,1711717865367,-500.0,0.0005178,120]
[320937674,1711717865377,-613.74,0.0005178,120]
[320937675,1711717865388,-629.65,0.0005178,120]
[320937676,1711717865397,-659.77,0.0005178,120]
[320937677,1711717865408,-500.0,0.0005178,120]
[320937678,1711717865418,-500.0,0.0005178,120]
[320937679,1711717865427,-753.42,0.0005178,120]
[320937680,1711717865437,-500.0,0.0005178,120]
[320937681,1711717865446,-500.0,0.0005178,120]
[320937682,1711717865456,-1665.88,0.0005178,120]
[320937683,1711717865466,-1013.23,0.0005178,120]
[320937684,1711717865476,-970.01,0.0005178,120]
[320937685,1711717865485,-885.14,0.0005178,21]
[320937686,1711717865495,-552.18,0.0005178,120]
[320937687,1711717865505,-542.16,0.0005178,120]
[320937688,1711717865514,-885.51,0.0005178,120]
[320937689,1711717865524,-917.94,0.0005178,120]
[320937690,1711717865534,-1173.66,0.0005178,120]
[320937691,1711717865544,-500.0,0.0005178,120]
[320937692,1711717865554,-553.85,0.0005178,120]
[320937693,1711717865566,-623.83,0.0005178,120]
[320937694,1711717865577,-1874.35,0.0005178,120]
[320937695,1711717865591,-500.0,0.0005178,120]
[320937696,1711717865601,-1018.16,0.0005178,120]
[320937697,1711717865612,-630.06,0.0005178,120]
[320937698,1711717865622,-500.0,0.0005178,120]
[320937699,1711717865633,-546.14,0.0005178,120]
[320937700,1711717865643,-2627.15,0.0005178,120]
[320937701,1711717865654,-500.0,0.0005178,120]
[320937702,1711717865667,-1014.49,0.0005178,120]
[320937703,1711717865678,-1300.2,0.0005178,120]
[320937704,1711717865690,-500.0,0.0005178,120]
[320937705,1711717865700,-1025.95,0.0005178,120]
[320937706,1711717865710,-984.89,0.0005178,120]
[320937707,1711717865721,-1228.11,0.0005178,72]
[320937708,1711717865731,-1789.86,0.0005178,120]
[320937709,1711717865740,-500.0,0.0005178,120]
[320937710,1711717865752,-506.84,0.0005178,120]
[320937711,1711717865762,-840.09,0.0005178,120]
[320937712,1711717865771,-678.1,0.0005178,120]
[320937713,1711717865781,-577.48,0.0005178,120]
[320937714,1711717865791,-500.0,0.0005178,120]
[320937715,1711717865801,-505.19,0.0005178,120]
[320937716,1711717865992,-742.6,0.0005178,120]
[320937717,1711717866003,-732.01,0.0005178,120]
[320937718,1711717866013,-555.83,0.0005178,120]
[320937719,1711717866023,-500.0,0.0005178,120]
[320937720,1711717866034,-534.07,0.0005178,120]
[320937721,1711717866044,-1115.2,0.0005178,120]
[320937722,1711717866054,-500.0,0.0005178,120]
[320937723,1711717866066,-500.0,0.0005178,120]
[320937724,1711717866076,-500.0,0.0005178,120]
[320937725,1711717866090,-1065.99,0.0005178,120]
[320937726,1711717866100,-500.0,0.0005178,120]
[320937727,1711717866110,-549.59,0.0005178,120]
[320937728,1711717866119,-617.87,0.0005178,120]
[320937729,1711717866129,-2105.1,0.0005178,120]
[320937730,1711717866139,-544.66,0.0005178,120]
[320937731,1711717866148,-693.07,0.0005178,120]
[320937732,1711717866158,-967.17,0.0005178,120]
[320937733,1711717866168,-500.0,0.0005178,120]
[320937734,1711717866179,-720.75,0.0005178,120]
[320937735,1711717866189,-573.1,0.0005178,120]
[320937736,1711717866200,-500.0,0.0005178,120]
[320937737,1711717866210,-159.62629104,0.0005178,120]
[320937738,1711717866220,-500.0,0.0005178,120]
[320937739,1711717866232,-556.26,0.0005178,120]
[320937740,1711717866243,-1304.35,0.0005178,120]
[320937741,1711717866255,-1140.14,0.0005178,120]
[320937742,1711717866265,-500.0,0.0005178,120]